bitfinex-derivatives/quotes_BTCF0:USTF0_20250811
["timestamp","ask_amount","ask_price","bid_price","bid_amount"]
[1754918003900,1.098805,119580.0,119570.0,1.1201493]
[1754918004104,1.098805,119580.0,119570.0,0.0041]
[1754918004305,1.098805,119580.0,119570.0,0.0877483]
[1754918004498,1.0151637,119580.0,119570.0,0.6683283]
[1754918004805,1.098805,119580.0,119570.0,0.6683283]
[1754918005005,1.098805,119580.0,119570.0,0.6710283]
[1754918005395,0.0992037,119580.0,119570.0,1.1228493]
[1754918005598,0.8182537,119580.0,119570.0,1.1228493]
[1754918005799,0.81007107,119580.0,119570.0,1.1228493]
[1754918006097,0.78371107,119580.0,119570.0,1.1228493]
[1754918006503,1.09596247,119580.0,119570.0,0.2714983]
[1754918006805,1.09596247,119580.0,119570.0,0.43586581]
[1754918007002,1.09596247,119580.0,119570.0,0.79666581]
[1754918007199,1.09596247,119580.0,119570.0,0.43586591]
[1754918007200,1.54778347,119580.0,119570.0,0.43586591]
[1754918007403,1.09596247,119580.0,119570.0,1.01644591]
[1754918007801,1.09596247,119580.0,119570.0,0.82121204]
[1754918009309,1.09596247,119580.0,119570.0,0.46041204]
[1754918010009,1.09596247,119580.0,119570.0,0.6710284]
[1754918010208,1.09596247,119580.0,119570.0,0.3102284]
[1754918010408,1.09596247,119580.0,119570.0,0.6710284]
[1754918010611,1.09596247,119580.0,119570.0,0.2714984]
[1754918010806,0.69916039,119580.0,119570.0,0.0904483]
[1754918011010,1.48060039,119580.0,119570.0,0.24071247]
[1754918011207,1.48060039,119580.0,119570.0,0.33215247]
[1754918011415,1.48060039,119580.0,119570.0,0.82129247]
[1754918011711,1.09588247,119580.0,119570.0,0.6710283]
[1754918011899,1.09588247,119580.0,119570.0,0.6322983]
[1754918012102,1.09588247,119580.0,119570.0,0.6710283]
[1754918012713,1.09588247,119580.0,119570.0,0.82129974]
[1754918013505,1.09588247,119580.0,119570.0,0.2714983]
[1754918013705,1.48060039,119580.0,119570.0,0.2462483]
[1754918014411,1.09588247,119580.0,119570.0,0.6710283]
[1754918014611,1.09588247,119580.0,119570.0,0.3102283]
[1754918015006,1.09588247,119580.0,119570.0,0.2714983]
[1754918015309,1.48060039,119580.0,119570.0,0.0068]
[1754918015502,1.48060039,119580.0,119570.0,0.24074694]
[1754918015706,1.48060039,119580.0,119570.0,0.15709864]
[1754918016010,1.48060039,119580.0,119570.0,0.24074704]
[1754918016513,1.48060039,119580.0,119570.0,0.0904484]
[1754918017405,1.09588247,119580.0,119570.0,0.0904484]
[1754918017612,1.48060039,119580.0,119570.0,0.0904484]
[1754918017816,1.48060039,119580.0,119570.0,0.2137284]
[1754918018010,1.48044039,119580.0,119570.0,0.2849784]
[1754918018411,1.09572247,119580.0,119570.0,0.2849784]
[1754918018818,0.31444247,119580.0,119570.0,1.05574632]
[1754918019120,0.78347107,119580.0,119570.0,1.05574632]
[1754918020020,0.95688237,119580.0,119570.0,1.05574632]
[1754918020414,0.78347107,119580.0,119570.0,1.05574632]
[1754918020912,0.86711237,119580.0,119570.0,1.05574632]
[1754918021621,0.95688237,119580.0,119570.0,1.05574632]
[1754918021816,0.98446237,119580.0,119570.0,1.05574632]
[1754918022023,0.00219107,119580.0,119570.0,1.05574632]
[1754918022219,0.78339107,119580.0,119570.0,1.13937584]
[1754918022520,0.95680237,119580.0,119570.0,1.13937584]
[1754918022823,0.98438237,119580.0,119570.0,1.13937584]
[1754918024325,1.03146237,119580.0,119570.0,0.75465792]
[1754918024524,1.09564237,119580.0,119570.0,1.25115111]
[1754918025830,1.01200107,119580.0,119570.0,1.25115111]
[1754918026017,0.96492107,119580.0,119570.0,1.25115111]
[1754918026212,1.04856247,119580.0,119570.0,0.86643319]
[1754918026516,1.04856247,119580.0,119570.0,1.25115111]
[1754918026717,1.09564247,119580.0,119570.0,1.25115111]
[1754918027124,1.01200107,119580.0,119570.0,1.25115111]
[1754918027326,1.04856247,119580.0,119570.0,1.25115111]
[1754918027524,0.96492107,119580.0,119570.0,1.25115111]
[1754918027728,1.04856247,119580.0,119570.0,1.25115111]
[1754918028229,1.09564247,119580.0,119570.0,1.25115111]
[1754918028526,1.09564247,119580.0,119570.0,0.64665319]
[1754918028727,1.09564247,119580.0,119570.0,0.80395319]
[1754918029028,1.09564247,119580.0,119570.0,0.86920319]
[1754918029225,1.09564247,119580.0,119570.0,0.6737984]
[1754918029721,1.09564247,119580.0,119570.0,1.05851632]
[1754918031414,0.86683247,119580.0,119570.0,1.05851632]
[1754918031618,1.01042247,119580.0,119570.0,0.86920319]
[1754918031822,1.08665247,119580.0,119570.0,1.25392111]
[1754918034225,1.47137039,119580.0,119570.0,0.28585309]
[1754918035130,1.08665247,119580.0,119570.0,0.28585309]
[1754918035325,1.47137039,119580.0,119570.0,0.28585309]
[1754918035523,1.47137039,119580.0,119570.0,0.20220479]
[1754918035722,1.83217039,119580.0,119570.0,0.20220479]
[1754918036524,1.83217039,119580.0,119570.0,0.0068]
[1754918038428,1.83362591,119580.0,119570.0,0.15714698]
[1754918043127,1.83362591,119580.0,119570.0,0.0068]
[1754918048143,1.83362591,119580.0,119570.0,0.15714698]
[1754918048442,0.0836554,119560.0,119550.0,0.5281222]
[1754918048643,1.33215332,119560.0,119550.0,0.4944311]
[1754918048849,1.33215332,119560.0,119550.0,0.6017611]
[1754918049145,1.33215332,119560.0,119550.0,0.6093611]
[1754918049442,1.33215332,119560.0,119550.0,0.48225]
[1754918049638,1.33225332,119560.0,119550.0,0.5258]
[1754918049838,1.33225332,119560.0,119550.0,0.6094623]
[1754918050140,1.33425332,119560.0,119550.0,0.6422223]
[1754918050438,0.9495354,119560.0,119550.0,0.6827123]
[1754918051043,0.9495354,119560.0,119550.0,0.6807123]
[1754918051344,1.33425332,119560.0,119550.0,0.6807123]
[1754918052041,0.9485354,119560.0,119550.0,0.6757123]
[1754918052242,0.9495354,119560.0,119550.0,0.6767123]
[1754918056149,0.9495354,119560.0,119550.0,0.5948823]
[1754918056349,0.9495354,119560.0,119550.0,0.6767123]
[1754918057245,0.1688154,119560.0,119550.0,0.6767123]
[1754918057446,0.0021,119560.0,119550.0,1.06143022]
[1754918057654,0.78258,119560.0,119550.0,1.06143022]
[1754918058151,0.8662354,119560.0,119550.0,1.06143022]
[1754918058552,0.78258,119560.0,119550.0,1.06143022]
[1754918059150,0.0021,119560.0,119550.0,1.14507373]
[1754918059646,0.0021,119560.0,119550.0,1.25864852]
[1754918060249,0.1118453,119560.0,119550.0,1.25864852]
[1754918060456,0.1569453,119560.0,119550.0,1.25864852]
[1754918060653,0.1569453,119560.0,119550.0,1.06324373]
[1754918060852,0.1118453,119560.0,119550.0,1.06324373]
[1754918061246,0.0021,119560.0,119550.0,1.06324373]
[1754918061446,0.0857553,119560.0,119550.0,1.06324373]
[1754918062154,0.0021,119560.0,119550.0,1.06324373]
[1754918062654,0.0857553,119560.0,119550.0,1.06324373]
[1754918064255,0.1512953,119560.0,119550.0,1.06324373]
[1754918064455,0.1569453,119560.0,119550.0,0.97960022]
[1754918064644,0.1659953,119560.0,119550.0,0.5948823]
[1754918064849,0.55071322,119560.0,119550.0,0.3705]
[1754918065049,0.55071322,119560.0,119550.0,0.0097]
[1754918066656,0.55071322,119560.0,119550.0,0.0933623]
[1754918067156,0.55071322,119560.0,119550.0,0.1402723]
[1754918067751,0.55071322,119560.0,119550.0,0.05661]
[1754918068152,0.55071322,119560.0,119550.0,0.1402724]
[1754918069054,0.55071322,119560.0,119550.0,0.1694624]
[1754918069254,0.1659953,119560.0,119550.0,0.2342924]
[1754918069452,0.55071322,119560.0,119550.0,0.2342924]
[1754918069955,0.55071322,119560.0,119550.0,0.0097]
[1754918070554,1.29631286,119560.0,119550.0,0.0097]
[1754918070859,1.29631286,119560.0,119530.0,0.56619294]
[1754918070860,0.0836693,119540.0,119530.0,0.52820884]
[1754918071158,1.31408722,119540.0,119530.0,0.52820884]
[1754918071455,1.31408722,119540.0,119530.0,0.77052363]
[1754918071656,1.32243141,119540.0,119530.0,0.86282363]
[1754918072348,1.32243141,119540.0,119530.0,0.86582363]
[1754918072551,1.32353141,119540.0,119530.0,0.89511363]
[1754918072753,1.32353141,119540.0,119530.0,0.61603864]
[1754918073354,1.32353141,119540.0,119530.0,0.53236234]
[1754918073555,1.32353141,119540.0,119530.0,0.61603864]
[1754918074259,0.93981349,119540.0,119530.0,0.61903864]
[1754918074460,1.32453141,119540.0,119530.0,0.61903864]
[1754918074654,0.15965349,119540.0,119530.0,0.68386864]
[1754918074959,0.93877349,119540.0,119530.0,0.67986864]
[1754918075152,0.93977349,119540.0,119530.0,0.68086864]
[1754918078060,0.15965349,119540.0,119530.0,0.68086864]
[1754918078261,0.93965349,119540.0,119530.0,1.13202678]
[1754918078462,0.93965349,119540.0,119530.0,0.68086864]
[1754918079266,0.87411349,119540.0,119530.0,0.68086864]
[1754918079564,0.93965349,119540.0,119530.0,0.68086864]
[1754918083056,0.87411349,119540.0,119530.0,0.68086864]
[1754918083257,0.78198,119540.0,119530.0,1.49282678]
[1754918083862,8.172e-05,119560.0,119550.0,0.0836628]
[1754918084062,0.77996172,119560.0,119550.0,0.5853928]
[1754918084270,0.93125752,119560.0,119550.0,0.5853928]
[1754918084657,0.93462752,119560.0,119550.0,0.5853928]
[1754918085462,0.85397172,119560.0,119550.0,0.5873928]
[1754918085667,0.84860172,119560.0,119550.0,0.5874928]
[1754918085867,0.80915172,119560.0,119550.0,0.5874928]
[1754918086369,0.89280752,119560.0,119550.0,0.6873928]
[1754918086765,0.93225752,119560.0,119550.0,0.6873928]
[1754918086971,0.93435752,119560.0,119550.0,0.6873928]
[1754918089469,0.85070172,119560.0,119550.0,0.6873928]
[1754918089668,0.80915172,119560.0,119550.0,1.13855094]
[1754918089872,0.78306172,119560.0,119550.0,1.13855094]
[1754918090366,0.78306172,119560.0,119550.0,1.28859153]
[1754918090866,0.86671752,119560.0,119550.0,1.28859153]
[1754918091074,0.78306172,119560.0,119550.0,1.28859153]
[1754918091266,0.78306172,119560.0,119550.0,1.13855094]
[1754918091769,0.78306172,119560.0,119550.0,1.28866627]
[1754918092570,0.78306172,119560.0,119550.0,1.13855094]
[1754918092765,0.93025752,119560.0,119550.0,0.6873928]
[1754918092970,0.93111752,119560.0,119550.0,0.6873928]
[1754918093874,0.93111752,119560.0,119550.0,0.83757262]
[1754918094672,0.93111752,119560.0,119550.0,0.6873928]
[1754918095774,0.93111752,119560.0,119550.0,0.83760015]
[1754918098276,0.80962172,119560.0,119550.0,0.83760015]
[1754918098473,0.80962172,119560.0,119550.0,1.22243506]
[1754918098665,0.84606172,119560.0,119550.0,1.22243506]
[1754918098869,0.84660172,119560.0,119550.0,1.22243506]
[1754918099470,0.84746172,119560.0,119550.0,0.83760015]
[1754918100475,0.00318172,119560.0,119550.0,1.22243506]
[1754918100682,0.03843552,119580.0,119570.0,0.0836488]
[1754918100867,0.84513552,119580.0,119570.0,0.5826288]
[1754918101573,1.31369974,119580.0,119570.0,0.5826288]
[1754918101777,1.31379974,119580.0,119570.0,0.69454963]
[1754918102380,0.92896483,119580.0,119570.0,0.69454963]
[1754918102680,1.31379974,119580.0,119570.0,0.73991963]
[1754918104075,1.31379974,119580.0,119570.0,0.77067963]
[1754918104277,1.31879974,119580.0,119570.0,0.25210083]
[1754918104484,1.31879974,119580.0,119570.0,0.33574953]
[1754918104874,1.31879974,119580.0,119570.0,0.1856487]
[1754918105079,1.31879974,119580.0,119570.0,0.102]
[1754918105277,1.31879974,119580.0,119570.0,0.1856486]
[1754918105477,2.28159066,119580.0,119570.0,0.00332]
[1754918105782,1.89675575,119580.0,119570.0,0.00332]
[1754918106177,1.96308539,119580.0,119570.0,0.00332]
[1754918106482,1.96308539,119580.0,119560.0,0.15010083]
[1754918106483,0.0836486,119570.0,119560.0,0.15010083]
[1754918106685,0.0836556,119560.0,119550.0,0.0836603]
[1754918106884,1.67470015,119560.0,119550.0,0.0836603]
[1754918107591,0.0836626,119550.0,119540.0,0.89093893]
[1754918107790,0.53482715,119550.0,119540.0,0.98374893]
[1754918107990,0.0836626,119550.0,119540.0,0.98374893]
[1754918108395,0.0836626,119550.0,119540.0,0.81641393]
[1754918108589,0.53482715,119550.0,119540.0,0.64908083]
[1754918108894,0.53482715,119550.0,119540.0,0.25146083]
[1754918109388,0.89562715,119550.0,119540.0,0.25146083]
[1754918109589,0.89562715,119550.0,119540.0,0.20609083]
[1754918109789,0.89562715,119550.0,119540.0,0.05599]
[1754918109993,0.0836696,119540.0,119530.0,6.234e-05]
[1754918110202,1.67472946,119540.0,119530.0,6.234e-05]
[1754918110586,1.84204146,119540.0,119530.0,6.234e-05]
[1754918111291,1.84194615,119540.0,119530.0,6.234e-05]
[1754918112501,1.84594615,119540.0,119530.0,0.00106234]
[1754918114503,1.84994615,119540.0,119530.0,0.00206234]
[1754918117500,1.39887565,119540.0,119530.0,0.00206234]
[1754918117700,1.84994615,119540.0,119530.0,0.00206234]
[1754918117896,1.85003828,119540.0,119530.0,0.00206234]
[1754918118199,1.84994615,119540.0,119530.0,0.00206234]
[1754918118599,0.0916696,119540.0,119530.0,0.00206234]
[1754918118797,0.78714526,119540.0,119530.0,0.58554894]
[1754918118993,0.87081486,119540.0,119530.0,1.03671349]
[1754918119201,0.87081486,119540.0,119530.0,0.58554894]
[1754918119699,0.78714526,119540.0,119530.0,0.66453894]
[1754918119895,0.87081486,119540.0,119530.0,0.66453894]
[1754918120199,0.87081486,119540.0,119530.0,0.54138234]
[1754918120395,0.54293941,119540.0,119530.0,0.15017234]
[1754918120703,1.68277941,119540.0,119530.0,0.15017234]
[1754918120893,1.68277941,119540.0,119530.0,0.10196234]
[1754918121203,1.84998615,119540.0,119530.0,0.10196234]
[1754918122401,1.3988216,119540.0,119530.0,0.10196234]
[1754918122701,1.84998615,119540.0,119530.0,0.10196234]
[1754918124802,1.8500502,119540.0,119530.0,0.10196234]
[1754918125002,1.84998615,119540.0,119530.0,0.15017234]
[1754918126201,1.85008971,119540.0,119530.0,0.15017234]
[1754918126398,1.85006726,119540.0,119530.0,0.15017234]
[1754918126600,1.07094615,119540.0,119530.0,0.15017234]
[1754918126796,1.84998615,119540.0,119530.0,0.15017234]
[1754918127605,1.68267415,119540.0,119530.0,0.15017234]
[1754918128198,1.2315096,119540.0,119530.0,0.10196234]
[1754918128405,1.68267415,119540.0,119530.0,0.10196234]
[1754918128606,1.82157415,119540.0,119530.0,0.10196234]
[1754918130906,1.82165091,119540.0,119530.0,0.10196234]
[1754918131106,1.82157415,119540.0,119530.0,0.15017234]
[1754918132806,1.85567415,119540.0,119530.0,0.15017234]
[1754918133508,1.8557533,119540.0,119530.0,0.15017234]
[1754918133805,1.85567415,119540.0,119530.0,0.15017234]
[1754918134999,1.85567415,119540.0,119530.0,0.10196234]
[1754918136006,1.85567415,119540.0,119530.0,0.15017234]
[1754918138805,1.85567415,119540.0,119530.0,0.19508234]
[1754918139003,1.85567415,119540.0,119530.0,0.15017234]
[1754918139705,1.85567415,119540.0,119530.0,0.19508234]
[1754918140202,1.78977315,119540.0,119530.0,0.19508234]
[1754918140407,1.78968483,119540.0,119530.0,0.19508234]
[1754918140806,1.78968483,119540.0,119530.0,0.15017234]
[1754918141002,2.34217206,119540.0,119530.0,7e-08]
[1754918141309,0.0836907,119510.0,119500.0,0.251091]
[1754918141511,0.0837907,119510.0,119500.0,0.26787514]
[1754918141808,0.8626707,119510.0,119500.0,0.70126037]
[1754918142008,0.8626707,119510.0,119500.0,0.78565037]
[1754918142209,0.86277062,119510.0,119500.0,0.78565037]
[1754918142601,0.86277062,119510.0,119500.0,0.31777764]
[1754918142807,1.24794585,119510.0,119500.0,0.31777764]
[1754918143110,1.24894585,119510.0,119500.0,0.31777764]
[1754918144414,1.24078305,119510.0,119500.0,0.31777764]
[1754918144712,1.24178305,119510.0,119500.0,0.31877764]
[1754918145014,1.24178305,119510.0,119500.0,0.23508164]
[1754918145401,1.24178305,119510.0,119500.0,0.13761]
[1754918145612,1.24178305,119510.0,119500.0,0.222]
[1754918145915,1.24178305,119510.0,119500.0,0.3056977]
[1754918146109,1.24178305,119510.0,119500.0,0.222]
[1754918147612,1.25021119,119510.0,119500.0,0.222]
[1754918148709,1.25021119,119510.0,119500.0,0.13761]
[1754918149007,2.78659765,119510.0,119500.0,0.01508216]
[1754918149510,2.78659765,119510.0,119500.0,0.002]
[1754918149912,2.00771765,119510.0,119500.0,0.21821]
[1754918150113,2.78651765,119510.0,119500.0,0.21821]
[1754918150314,2.40134242,119510.0,119500.0,0.3019077]
[1754918150509,2.04050242,119510.0,119500.0,0.68708293]
[1754918151107,2.42567765,119510.0,119500.0,0.21821]
[1754918151312,2.78647765,119510.0,119500.0,0.21821]
[1754918151505,2.78647765,119510.0,119500.0,0.04882]
[1754918151708,2.78647765,119510.0,119500.0,0.002]
[1754918152216,2.78647765,119510.0,119500.0,0.04882]
[1754918152515,2.78647765,119510.0,119500.0,0.09412]
[1754918152721,2.78647765,119510.0,119500.0,0.002]
[1754918153216,2.42567765,119510.0,119500.0,0.002]
[1754918153612,2.78647765,119510.0,119500.0,0.002]
[1754918154616,2.78647765,119510.0,119500.0,0.04882]
[1754918157312,2.76789119,119510.0,119500.0,0.04882]
[1754918157709,1.16762806,119510.0,119500.0,0.43399523]
[1754918157920,0.78087992,119510.0,119500.0,1.23929283]
[1754918158111,0.86457052,119510.0,119500.0,1.23929283]
[1754918158312,0.78928741,119510.0,119500.0,1.23929283]
[1754918158510,0.78928741,119510.0,119500.0,1.28459283]
[1754918158713,0.78928741,119510.0,119500.0,1.32255283]
[1754918159420,0.78087992,119510.0,119500.0,1.32255283]
[1754918159717,0.91333363,119530.0,119500.0,1.32255283]
[1754918159718,0.6556289,119540.0,119520.0,0.0836836]
[1754918160017,0.6556289,119540.0,119530.0,1.04586183]
[1754918160018,0.10146,119540.0,119530.0,1.04586183]
[1754918160212,0.9637696,119540.0,119530.0,0.6606866]
[1754918160815,0.96385849,119540.0,119530.0,0.6606866]
[1754918161021,1.82326417,119540.0,119530.0,0.0001]
[1754918161322,1.82326417,119540.0,119530.0,0.2999866]
[1754918161519,1.83177738,119540.0,119530.0,0.07274]
[1754918161718,1.83477738,119540.0,119530.0,0.07274]
[1754918161918,1.83877738,119540.0,119530.0,0.0011]
[1754918162117,1.79137738,119540.0,119530.0,0.04792]
[1754918162320,1.83877738,119540.0,119530.0,0.21731]
[1754918162518,1.83877738,119540.0,119530.0,0.17201]
[1754918162818,1.83977738,119540.0,119530.0,0.17201]
[1754918163217,1.83977738,119540.0,119530.0,0.21731]
[1754918163530,1.83977738,119540.0,119530.0,0.04792]
[1754918163824,1.83977738,119540.0,119530.0,0.0011]
[1754918164522,1.83977738,119540.0,119530.0,0.0377]
[1754918165816,1.78212738,119540.0,119530.0,0.0377]
[1754918167120,1.69091738,119540.0,119530.0,0.0377]
[1754918168822,1.82981738,119540.0,119530.0,0.0377]
[1754918170524,1.82972849,119540.0,119530.0,0.0377]
[1754918171042,1.92093849,119540.0,119530.0,0.25391]
[1754918171224,1.95503849,119540.0,119530.0,0.25391]
[1754918171527,1.95514501,119540.0,119530.0,0.25391]
[1754918176638,1.95514501,119540.0,119530.0,0.20861]
[1754918176831,1.95514501,119540.0,119530.0,0.17065]
[1754918177739,1.95514501,119540.0,119530.0,0.11034]
[1754918179236,1.95514501,119540.0,119530.0,0.14559]
[1754918179540,1.95514501,119540.0,119530.0,0.18932]
[1754918179936,1.95514501,119540.0,119530.0,0.11034]
[1754918180430,1.95514501,119540.0,119530.0,0.0377]
[1754918181039,0.0836907,119510.0,119500.0,0.43978]
[1754918181242,1.39730214,119510.0,119500.0,0.52487]
[1754918181440,1.39730214,119510.0,119490.0,0.5282031]
[1754918181441,0.0836977,119500.0,119490.0,0.07898]
[1754918181742,0.61902338,119500.0,119490.0,0.20949]
[1754918181937,0.61902338,119500.0,119490.0,0.27279]
[1754918182143,0.5533346,119500.0,119490.0,0.27289]
[1754918183433,0.5533346,119500.0,119490.0,0.3565947]
[1754918183641,0.5533346,119500.0,119490.0,0.27289]
[1754918184041,0.1680177,119500.0,119490.0,0.27289]
[1754918184245,0.61955254,119500.0,119490.0,0.27289]
[1754918184542,0.0837977,119500.0,119490.0,0.3565947]
[1754918184940,0.1254577,119500.0,119490.0,0.3565947]
[1754918185142,0.1538277,119500.0,119490.0,0.3565947]
[1754918185541,0.0837977,119500.0,119490.0,0.7173947]
[1754918185740,0.0847977,119500.0,119490.0,1.16992954]
[1754918185947,0.0847976,119500.0,119490.0,0.86859146]
[1754918186153,0.1274576,119500.0,119490.0,0.87059146]
[1754918186554,0.0857976,119500.0,119490.0,0.87059146]
[1754918186749,0.0021,119500.0,119490.0,0.87059146]
[1754918187155,0.0857976,119500.0,119490.0,0.87059146]
[1754918187754,0.0021,119500.0,119490.0,1.3221263]
[1754918187959,0.78026,119500.0,119490.0,1.3221263]
[1754918188254,0.25116926,119510.0,119490.0,1.6567992]
[1754918188454,8.576e-05,119510.0,119500.0,1.02043244]
[1754918188758,0.72954576,119510.0,119500.0,0.5688976]
[1754918188953,0.77427636,119510.0,119500.0,1.54588723]
[1754918189255,0.77427636,119510.0,119500.0,1.07718915]
[1754918189552,0.77437636,119510.0,119500.0,1.07728915]
[1754918189757,0.77446082,119510.0,119500.0,1.52882399]
[1754918190056,0.77446082,119510.0,119500.0,1.3334192]
[1754918190257,0.77446082,119510.0,119500.0,1.2558192]
[1754918190452,0.77546082,119510.0,119500.0,0.80528436]
[1754918190670,0.77546082,119510.0,119500.0,0.7326876]
[1754918191157,0.77646082,119510.0,119500.0,0.7326876]
[1754918191457,0.77646082,119510.0,119500.0,1.18422244]
[1754918191659,0.08587506,119510.0,119500.0,1.35158244]
[1754918191859,2.36399506,119510.0,119500.0,1.35158244]
[1754918194261,2.36399506,119510.0,119500.0,0.9010476]
[1754918194561,2.40565506,119510.0,119500.0,0.9010476]
[1754918195762,2.44212506,119510.0,119500.0,0.7336876]
[1754918196367,2.40565506,119510.0,119500.0,0.7336876]
[1754918196662,2.48755506,119510.0,119500.0,0.7336876]
[1754918199262,2.9390899,119510.0,119500.0,0.52319139]
[1754918199463,2.9390899,119510.0,119500.0,0.36051379]
[1754918199658,3.2998899,119510.0,119500.0,0.42540858]
[1754918200157,2.48755506,119510.0,119500.0,0.35880249]
[1754918200665,2.48755506,119510.0,119500.0,0.56829249]
[1754918200860,2.84835506,119510.0,119500.0,0.3728877]
[1754918201064,2.48755506,119510.0,119500.0,0.3728877]
[1754918202266,2.84835506,119510.0,119500.0,0.52318881]
[1754918202467,2.84835506,119510.0,119500.0,0.52318871]
[1754918203264,2.48755506,119510.0,119500.0,0.52318871]
[1754918203562,2.36399506,119510.0,119500.0,0.44420871]
[1754918203763,2.36399506,119510.0,119500.0,1.33552355]
[1754918203764,2.28010446,119510.0,119500.0,1.33552355]
[1754918204668,2.28010446,119510.0,119500.0,1.18522244]
[1754918205164,2.36379516,119510.0,119500.0,1.18522244]
[1754918205869,2.36379516,119510.0,119500.0,1.38062723]
[1754918206068,2.44137516,119510.0,119500.0,1.38062723]
[1754918206369,2.48680516,119510.0,119500.0,1.31422406]
[1754918206573,2.48680516,119510.0,119500.0,0.92909239]
[1754918206868,2.48680516,119510.0,119500.0,1.31422406]
[1754918207064,2.48680516,119510.0,119500.0,1.11881927]
[1754918207469,2.87193683,119510.0,119500.0,0.5241976]
[1754918207668,2.87193683,119510.0,119500.0,0.0797]
[1754918207871,3.23273683,119510.0,119500.0,0.0797]
[1754918208867,2.87193683,119510.0,119500.0,0.1633976]
[1754918209172,3.23273683,119510.0,119500.0,0.1633976]
[1754918209962,2.48680516,119510.0,119500.0,0.1633976]
[1754918210167,2.48680516,119510.0,119500.0,0.72021523]
[1754918210370,2.48680516,119510.0,119500.0,0.76284523]
[1754918210667,2.40311446,119510.0,119500.0,1.33523188]
[1754918210871,2.35768446,119510.0,119500.0,1.33523188]
[1754918211067,2.32176446,119510.0,119500.0,1.18495425]
[1754918211274,2.40545506,119510.0,119500.0,1.33522653]
[1754918211573,2.35754446,119510.0,119500.0,1.33522653]
[1754918212162,2.32176446,119510.0,119500.0,1.33522653]
[1754918212370,2.32652446,119510.0,119500.0,1.41890503]
[1754918212665,2.28486446,119510.0,119500.0,1.26863275]
[1754918214764,1.50218446,119510.0,119500.0,1.26863275]
[1754918214971,0.78434446,119510.0,119500.0,1.26863275]
[1754918215169,0.00218446,119510.0,119500.0,2.6695294]
[1754918215471,2.40619,119520.0,119510.0,0.0836907]
[1754918215670,2.49182,119520.0,119510.0,0.97833735]
[1754918215871,2.49182,119520.0,119510.0,1.27259135]
[1754918216178,2.49182,119520.0,119510.0,1.55163971]
[1754918216379,2.49200187,119520.0,119510.0,1.55173971]
[1754918216878,2.49300187,119520.0,119510.0,1.65263971]
[1754918217078,2.49400187,119520.0,119510.0,1.65363971]
[1754918217477,1.71144187,119520.0,119510.0,1.45826985]
[1754918217671,0.21144187,119520.0,119510.0,1.45826985]
[1754918219176,0.16467187,119520.0,119510.0,1.45826985]
[1754918219879,0.21144187,119520.0,119510.0,1.45826985]
[1754918220567,0.00218187,119520.0,119510.0,1.54660298]
[1754918220974,0.00218187,119520.0,119510.0,1.74181646]
[1754918221274,0.3608,119560.0,119510.0,1.74181646]
[1754918221275,0.00124,119570.0,119560.0,0.0836557]
[1754918221471,0.0836211,119610.0,119600.0,0.2508772]
[1754918221472,0.04677,119610.0,119600.0,0.2508772]
[1754918221677,1.58563,119610.0,119600.0,0.8210572]
[1754918221872,0.86795,119610.0,119600.0,1.27243385]
[1754918222075,0.9873507,119610.0,119600.0,1.18880615]
[1754918222282,1.03321293,119610.0,119600.0,1.10763615]
[1754918222479,1.75099293,119610.0,119600.0,1.19134469]
[1754918222681,1.75099293,119610.0,119600.0,1.10773615]
[1754918222878,1.75099293,119610.0,119600.0,0.7375295]
[1754918223072,1.75099293,119610.0,119600.0,1.18890615]
[1754918223572,1.70845223,119610.0,119600.0,0.7375295]
[1754918223777,1.70845223,119610.0,119600.0,1.35612215]
[1754918223978,2.49517223,119610.0,119600.0,1.35612215]
[1754918224178,2.49517223,119610.0,119600.0,1.18890615]
[1754918224487,2.49517223,119610.0,119600.0,1.21220615]
[1754918224689,2.57879293,119610.0,119600.0,1.21220615]
[1754918225082,2.57879293,119610.0,119600.0,0.7608295]
[1754918225486,2.57879293,119610.0,119600.0,1.21220615]
[1754918225989,2.49416293,119610.0,119600.0,1.12973615]
[1754918226485,2.49416293,119610.0,119600.0,0.6783595]
[1754918226686,2.49616293,119610.0,119600.0,0.6793595]
[1754918226885,2.49716293,119610.0,119600.0,0.6803595]
[1754918227087,2.37353293,119610.0,119600.0,0.5534495]
[1754918227683,2.37353293,119610.0,119600.0,0.4698218]
[1754918228993,2.49716293,119610.0,119600.0,0.6792018]
[1754918229190,2.49716293,119610.0,119600.0,1.13057845]
[1754918229191,2.41354223,119610.0,119600.0,1.13057845]
[1754918229586,2.49716293,119610.0,119600.0,1.13057845]
[1754918229886,2.41354223,119610.0,119600.0,1.09203845]
[1754918230089,2.28863223,119610.0,119600.0,1.13057845]
[1754918230793,2.41226223,119610.0,119600.0,1.13057845]
[1754918231291,2.36549223,119610.0,119600.0,1.13057845]
[1754918231492,2.36549223,119610.0,119600.0,0.6792018]
[1754918231703,2.44911293,119610.0,119600.0,1.13057845]
[1754918231991,2.49588293,119610.0,119600.0,1.13057845]
[1754918232396,2.49588293,119610.0,119600.0,0.6792018]
[1754918233003,2.36549223,119610.0,119600.0,1.13057845]
[1754918233385,2.49588293,119610.0,119600.0,1.13057845]
[1754918233785,2.49588293,119610.0,119600.0,0.6792018]
[1754918234194,2.49588293,119610.0,119600.0,0.6406618]
[1754918234387,2.49588293,119610.0,119600.0,0.1090277]
[1754918235302,2.41226223,119610.0,119600.0,0.6792077]
[1754918235597,2.49588293,119610.0,119600.0,1.13058435]
[1754918236496,2.41226223,119610.0,119600.0,1.13058435]
[1754918237195,1.50319223,119610.0,119600.0,1.13058435]
[1754918237393,2.28919223,119610.0,119600.0,1.13058435]
[1754918237890,1.50319223,119610.0,119600.0,1.13058435]
[1754918238090,2.28915223,119610.0,119600.0,1.13058435]
[1754918238287,0.78915223,119610.0,119600.0,1.13058435]
[1754918238488,0.00319223,119610.0,119600.0,1.13058435]
[1754918238694,0.00319223,119610.0,119600.0,1.66556954]
[1754918238893,0.00319223,119610.0,119600.0,1.38140889]
[1754918239404,0.00319223,119610.0,119600.0,1.83278554]
[1754918239697,0.06502271,119640.0,119600.0,1.83278554]
[1754918239698,0.05850271,119640.0,119630.0,0.0836067]
[1754918239897,0.85974,119640.0,119630.0,1.10102335]
[1754918240088,0.94226,119640.0,119630.0,0.5694267]
[1754918240296,0.98869,119640.0,119630.0,0.6496467]
[1754918240491,0.20345433,119640.0,119630.0,1.20092335]
[1754918240796,0.94222433,119640.0,119630.0,1.20092335]
[1754918241099,0.94222433,119640.0,119630.0,1.20102335]
[1754918241292,0.98865433,119640.0,119630.0,0.7496467]
[1754918241599,2.48865433,119640.0,119630.0,0.7496467]
[1754918241798,2.40771433,119640.0,119630.0,1.20102335]
[1754918242097,1.15604,119670.0,119660.0,0.0835857]
[1754918242292,1.94975286,119670.0,119660.0,0.57784235]
[1754918242488,1.94975286,119670.0,119660.0,1.10100235]
[1754918242690,0.07432,119670.0,119660.0,1.10100235]
[1754918242889,0.12075,119690.0,119680.0,0.0835717]
[1754918243094,0.98915927,119690.0,119680.0,1.10098835]
[1754918243300,0.94272927,119690.0,119680.0,1.10098835]
[1754918243491,0.94272927,119690.0,119680.0,0.6496117]